[Event "11th Festival Palmanova-A 2022"]
[Site "Strassoldo"]
[Date "2022.12.11"]
[Round "6.9"]
[White "Piangerelli, Michele"]
[Black "Titze, Leo"]
[Result "0-1"]
[ECO "B36"]
[WhiteElo "2017"]
[BlackElo "2252"]
[Annotator "TA"]
[PlyCount "64"]
[EventDate "2022.12.08"]
[EventType "swiss"]
[EventCountry "ITA"]
[SourceTitle "playchess.com"]
[Source "ChessBase"]
[SourceQuality "1"]
[TimeControl "5400+30"]

{[%evp 18,64,34,36,48,40,44,40,43,37,51,8,41,56,60,61,154,155,162,135,118,112,118,105,122,-129,-117,-101,-99,-486,-479,-530,-527,-518,-516,-593,-508,-589,-480,-781,-559,-958,-883,-1407,-1391,-1362,-1263,-29978,-29974]} 1. e4 {[%emt 0:13:06]} c5 {[%emt 0:00:14]} 2. Nf3 {[%emt 0:00:06]} Nc6 {[%emt 0:00:02]} 3. d4 {[%emt 0:00:05]} cxd4 {[%emt 0:00:04]} 4. Nxd4 {[%emt 0:00:03]} g6 {[%emt 0:00:12]} 5. c4 {[%emt 0:00:04]} Nf6 {[%emt 0:01:41]} 6. Nc3 {[%emt 0:00:05]} d6 {[%emt 0:00:12]} 7. Be2 {[%emt 0:01:26]} Nxd4 {[%emt 0:00:50]} 8. Qxd4 {[%emt 0:00:11]} Bg7 {[%emt 0:00:05]} 9. Be3 {[%emt 0:00:46]} O-O {[%emt 0:00:09]} 10. Qd3 {[%emt 0:00:16]} a5 $1 {[%emt 0:02:25][%mdl 4] is more profitable than 10...Be6 at the moment. B36: Sicilian: Maroczy Bind: Gurgenidze System.} 11. O-O {[%emt 0:00:09]} a4 {[%emt 0:01:33]} 12. f4 {[%emt 0:00:32]} Qa5 {[%emt 0:01:20] White is slightly better.} 13. Rad1 {[%emt 0:02:20][%cal Ba1d1,Bd1d3,Bd3e3][%mdl 32] [#]} Bd7 $146 {[%emt 0:12:04]} ({Predecessor:} 13... Ng4 14. Bxg4 Bxg4 15. Rc1 Bxc3 16. Rxc3 Bd7 17. f5 Bc6 18. Bd4 f6 19. fxg6 Qh5 {1-0 (37) Moussard,J (2672)-Quesada Perez,Y (2568) Chennai 2022}) 14. e5 {[%emt 0:04:14]} Bf5 {[%emt 0:04:41] [#]} (14... dxe5 {is interesting.} 15. fxe5 Ng4 16. Nd5 Nxe3 17. Qxe3 Bc6) 15. exf6 $1 {[%emt 0:00:08]} Bxd3 {[%emt 0:00:09]} 16. fxg7 {[%emt 0:00:05]} Kxg7 {[%emt 0:00:18]} (16... Bxe2 $1 $14 17. gxf8=Q+ (17. gxf8=B $2 Bxf1 18. Bxe7 Bxc4 $19) (17. gxf8=R+ Kxf8 18. Nxe2 Qb4 $16) 17... Kxf8 18. Nxe2 Qb4) 17. Rxd3 {[%emt 0:00:51]} Qb4 {[%emt 0:05:19]} 18. Bd4+ {[%emt 0:00:49]} f6 {[%emt 0:02:08]} 19. Nd5 {[%emt 0:02:01]} Qxc4 {[%emt 0:01:55]} 20. Nb6 $1 {[%emt 0:00:56]} Qc2 {[%emt 0:01:06][%cal Oe7e5] [#] White must now prevent ...e5!} 21. Nxa8 $4 {[%emt 0:00:07][%mdl 8192]} (21. Re3 $1 $16 {is necessary to keep the advantage. Threatens to win with Bc3.} Rae8 22. Bd3) 21... Qxe2 $17 {[%emt 0:07:06]} 22. Re3 {[%emt 0:00:42]} Qc4 {[%emt 0:00:38]} 23. Re4 {[%emt 0:03:01][%mdl 8192] Loses the game.} e5 $19 {[%emt 0:04:04]} ({Don't do} 23... Rxa8 {[#]} 24. Bxf6+ $1 {[%mdl 512]} (24. Rxe7+ $2 {loses.} Kf8 $19) 24... Kxf6 25. Rxc4 $18) 24. fxe5 {[%emt 0:05:28]} dxe5 {[%emt 0:00:18]} (24... Rxa8 25. exf6+ Kf7 26. Re7+ Kf8 27. Be3 $18) 25. Nc7 {[%emt 0:04:04]} Qxc7 {[%emt 0:03:11]} ({Stronger than} 25... exd4 26. Ne6+ Kg8 27. Nxf8 Kxf8 28. Rd1 $19) 26. Bc3 {[%emt 0:00:01]} Qc6 {[%emt 0:00:37]} 27. Rfe1 {[%emt 0:00:12]} Rd8 {[%emt 0:00:35][%cal Oa4a3] And now ...a3! would win.} 28. g4 {[%emt 0:00:10]} (28. a3 $142) 28... h6 {[%emt 0:00:39][%cal Oa4a3] Hoping for ...a3!} 29. h4 {[%emt 0:00:13]} Rd3 {[%emt 0:00:27]} 30. g5 {[%emt 0:01:24]} hxg5 {[%emt 0:00:19]} 31. hxg5 {[%emt 0:00:10]} Rg3+ {[%emt 0:00:20]} 32. Kh2 {[%emt 0:00:03]} Rxg5 {[%emt 0:51:49] Weighted Error Value: White=1.21/Black=0.36} 0-1

[Event "11th Festival Palmanova-A 2022"]
[Site "Strassoldo"]
[Date "2022.12.11"]
[Round "6.10"]
[White "Hercegovac, Neven"]
[Black "Perossa, Nicolas"]
[Result "1/2-1/2"]
[ECO "E92"]
[WhiteElo "2230"]
[BlackElo "2195"]
[Annotator "TA"]
[PlyCount "71"]
[EventDate "2022.12.08"]
[EventType "swiss"]
[EventCountry "ITA"]
[SourceTitle "playchess.com"]
[Source "ChessBase"]
[SourceQuality "1"]
[TimeControl "5400+30"]

{[%evp 25,71,19,35,33,55,38,62,50,60,11,8,-2,-2,-36,-36,-43,0,-22,-19,-20,-20,-17,-27,-16,11,-60,-60,-60,-44,-35,-39,-48,-33,-75,-33,-73,-78,-79,-66,-85,-59,-74,-68,-69,-61,-96,-62,-129]} 1. d4 {[%emt 0:00:11]} Nf6 {[%emt 0:00:07]} 2. c4 {[%emt 0:00:05]} g6 {[%emt 0:00:05]} 3. Nc3 {[%emt 0:00:07]} Bg7 {[%emt 0:00:06]} 4. e4 {[%emt 0:00:04]} d6 {[%emt 0:00:06]} 5. Nf3 {[%emt 0:00:08]} O-O {[%emt 0:00:10]} 6. Be2 {[%emt 0:00:03]} e5 {[%emt 0:00:05]} 7. Be3 {[%emt 0:00:12]} exd4 {[%emt 0:00:21]} 8. Nxd4 {[%emt 0:00:08]} Re8 {[%emt 0:00:06]} 9. f3 {[%emt 0:00:06]} c6 {[%emt 0:00:05]} 10. Bf2 {[%emt 0:00:14]} d5 {[%emt 0:01:08]} 11. exd5 {[%emt 0:00:20]} cxd5 {[%emt 0:00:14]} 12. O-O {[%emt 0:00:11]} Nc6 {[%emt 0:00:40]} 13. c5 {[%emt 0:00:15]} Nh5 {[%emt 0:18:34]} 14. Qd2 {[%emt 0:00:35] Inhibits Nf4. E92: King's Indian: Classical: 6 Be2 e5: 7 dxe5, 7 Be3 and Petrosian System without 7...Nbd7.} a6 {[%emt 0:12:08]} 15. Rfe1 {[%emt 0:05:28]} Be6 {[%emt 0:07:41]} 16. Rad1 {[%emt 0:01:50] White is more active. White is slightly better.} Qc7 {[%emt 0:03:27] [#]} 17. Nxc6 $146 {[%emt 0:27:01]} (17. Bf1 $14 {should be considered.}) ({Predecessor:} 17. Bf1 Rad8 18. a3 Nf6 19. b4 Nd7 20. Nxe6 fxe6 21. Nxd5 Qb8 22. Qa2 Be5 23. f4 exd5 24. Rxd5 {1-0 (29) Muradli,M (2523)-Talibov,S (2307) Nakhchivan 2022}) 17... bxc6 $11 {[%emt 0:01:45]} 18. g3 {[%emt 0:00:44][%cal Bg2g3,Bg3g4][%mdl 32]} (18. a3 {is more complex.} a5 19. Na4 Qf4 20. Nb6) 18... Qa5 {[%emt 0:03:08]} 19. g4 {[%emt 0:34:23]} Nf6 {[%emt 0:02:20]} 20. Bd4 {[%emt 0:00:23]} Reb8 {[%emt 0:05:22]} (20... Rab8 $5 {[%cal Rf6d7]}) 21. Kg2 {[%emt 0:07:39]} Qb4 {[%emt 0:26:11]} 22. b3 {[%emt 0:09:35]} Nd7 {[%emt 0:03:15]} (22... h5 {is interesting.} 23. h3 hxg4 24. hxg4 Nd7) 23. Na4 {[%emt 0:00:20]} Qxd2 {[%emt 0:04:31]} 24. Rxd2 {[%emt 0:00:03]} a5 {[%emt 0:00:37]} 25. Bd1 {[%emt 0:05:15]} ({White should try} 25. Be3 $11) 25... Bxd4 $15 {[%emt 0:01:16]} 26. Rxd4 {[%emt 0:00:02]} Rb5 {[%emt 0:00:09]} 27. Be2 {[%emt 0:00:53]} Rb4 {[%emt 0:01:36]} 28. Rd2 {[%emt 0:02:37]} Kg7 {[%emt 0:07:06]} 29. Kg3 {[%emt 0:00:57]} Rh8 {[%emt 0:02:02]} (29... g5 {looks sharper.} 30. Bf1 h5 31. h3 Kf6) 30. Bd3 {[%emt 0:02:26]} h5 {[%emt 0:01:09][%cal Rh5g4]} 31. h3 {[%emt 0:01:02]} g5 {[%emt 0:00:00]} 32. Rde2 {[%emt 0:00:51]} Kf6 {[%emt 0:00:20]} 33. Re3 {[%emt 0:01:06]} h4+ {[%emt 0:00:19]} 34. Kg2 {[%emt 0:00:43]} Rhb8 {[%emt 0:00:35][%cal Ob4a4]} 35. R3e2 {[%emt 0:00:26]} Rf4 {[%emt 0:00:26][%cal Of4a4]} 36. Re3 {[%emt 0:02:07] Weighted Error Value: White=0.18 (very precise) /Black=0.14 (very precise)} (36. Bc2 $15) 1/2-1/2

[Event "11th Festival Palmanova-A 2022"]
[Site "Strassoldo"]
[Date "2022.12.11"]
[Round "6.11"]
[White "Siraj, Svit"]
[Black "Bardone, Lorenzo"]
[Result "1/2-1/2"]
[ECO "B13"]
[WhiteElo "2114"]
[BlackElo "2215"]
[Annotator "TA"]
[PlyCount "68"]
[EventDate "2022.12.08"]
[EventType "swiss"]
[EventCountry "ITA"]
[SourceTitle "playchess.com"]
[Source "ChessBase"]
[SourceQuality "1"]
[TimeControl "5400+30"]

{[%evp 11,68,0,16,10,19,-13,99,5,17,0,6,9,8,6,12,6,41,-84,20,18,12,20,15,0,0,0,0,0,0,0,0,0,0,0,0,0,0,0,0,-5,0,0,0,-4,0,-2,0,0,0,0,0,-7,0,0,0,0,0,0,0]} 1. e4 {[%emt 0:03:19]} c6 {[%emt 0:00:06]} 2. d4 {[%emt 0:00:25]} d5 {[%emt 0:00:05]} 3. exd5 {[%emt 0:00:12]} cxd5 {[%emt 0:00:06]} 4. Bf4 {[%emt 0:00:13]} Nc6 {[%emt 0:00:44]} 5. Nf3 {[%emt 0:00:16]} Bf5 {[%emt 0:03:59]} 6. c3 {[%emt 0:02:40]} Nf6 {[%emt 0:02:08]} 7. Nbd2 {[%emt 0:01:03] B13: Caro-Kann: Exchange Variation and Panov-Botvinnik Attack.} e6 {[%emt 0:00:38]} 8. Ne5 {[%emt 0:02:15] aiming for g4.} Be7 {[%emt 0:11:17] [#]} (8... Bd6 $11 {keeps the balance.}) 9. Be2 {[%emt 0:12:38]} (9. g4 $1 $16 {[%cal Rg4f5]} Nxe5 10. gxf5 (10. Bxe5 Bxg4 11. Qa4+ Kf8 $17)) 9... Nd7 {[%emt 0:06:08] [#]} 10. Nxc6 $146 {[%emt 0:04:41]} ({Predecessor:} 10. Nd3 O-O 11. O-O b5 12. Nf3 a6 13. Nde5 Rc8 14. a4 Ndxe5 15. Nxe5 Nxe5 16. Bxe5 {1-0 (30) Mueller,R (1845)-Link,F (1529) Rieneck 2008}) 10... bxc6 {[%emt 0:00:19]} 11. b4 {[%emt 0:00:18]} a5 {[%emt 0:03:11]} 12. a3 {[%emt 0:08:51]} O-O {[%emt 0:02:29]} 13. O-O {[%emt 0:00:43]} f6 {[%emt 0:02:46]} 14. Bg4 {[%emt 0:01:33]} (14. Bg3 $14 {stays ahead.}) 14... Bxg4 {[%emt 0:10:32]} (14... axb4 $17 15. cxb4 g5) 15. Qxg4 $11 {[%emt 0:00:17] The position is equal.} e5 {[%emt 0:09:36]} 16. dxe5 {[%emt 0:01:34]} fxe5 {[%emt 0:00:33]} 17. Qe6+ {[%emt 0:00:10]} ({Much worse is} 17. Bh6 Rf7 $15) (17. Bg3 {simplifies} Rf6 18. Qe2 Qc7 19. c4) 17... Kh8 {[%emt 0:00:55] [#] Strongly threatening ...Rf6.} 18. Bxe5 {[%emt 0:00:18]} Nxe5 {[%emt 0:00:22]} 19. Qxe5 {[%emt 0:00:11]} Bf6 {[%emt 0:00:36]} 20. Qg3 {[%emt 0:02:02]} axb4 {[%emt 0:01:29]} 21. axb4 {[%emt 0:00:12]} Rxa1 {[%emt 0:00:12]} 22. Rxa1 {[%emt 0:00:03]} Bh4 {[%emt 0:00:11]} 23. Qd3 {[%emt 0:00:14]} Bxf2+ {[%emt 0:04:53]} 24. Kh1 {[%emt 0:00:10]} Bh4 {[%emt 0:06:58]} 25. Nb3 {[%emt 0:04:34]} Qc8 {[%emt 0:13:40]} 26. Nd4 {[%emt 0:03:27]} Bf6 {[%emt 0:06:40]} 27. Rc1 {[%emt 0:04:04]} Re8 {[%emt 0:01:14]} 28. Nf3 {[%emt 0:02:21]} Qg4 {[%emt 0:01:31]} 29. b5 {[%emt 0:04:05]} cxb5 {[%emt 0:04:23]} 30. Qxb5 {[%emt 0:02:16][%cal Rb5e8]} Rd8 {[%emt 0:00:04]} 31. Rd1 {[%emt 0:01:58]} Qc4 {[%emt 0:01:17]} 32. Qxc4 {[%emt 0:00:32]} dxc4 {[%emt 0:00:01]} 33. Rxd8+ {[%emt 0:00:11]} Bxd8 {[%emt 0:00:01]} 34. Ne5 {[%emt 0:00:07] Threatens to win with Nf7+.} Bf6 {[%emt 0:00:22] Weighted Error Value: White=0.18 (very precise) /Black=0.18 (very precise)} 1/2-1/2

[Event "11th Festival Palmanova-A 2022"]
[Site "Strassoldo"]
[Date "2022.12.11"]
[Round "6.12"]
[White "Ranfagni, Stefano"]
[Black "Vincenti, Leonardo"]
[Result "1-0"]
[ECO "B52"]
[WhiteElo "1934"]
[BlackElo "1910"]
[Annotator "TA"]
[PlyCount "109"]
[EventDate "2022.12.08"]
[EventType "swiss"]
[EventCountry "ITA"]
[SourceTitle "playchess.com"]
[Source "ChessBase"]
[SourceQuality "1"]
[TimeControl "5400+30"]

{[%evp 9,109,12,8,15,10,22,18,15,69,5,54,20,17,9,17,10,7,14,6,12,8,13,52,27,23,19,30,0,0,0,0,-20,-9,-18,-9,-3,0,-26,-18,-23,-25,-39,-38,-42,-45,-88,-40,-42,-52,-41,-42,-48,0,-15,-4,-8,-6,-14,0,-51,-51,-55,-51,-46,-28,-61,4,0,0,0,0,0,0,0,0,0,0,0,0,0,0,0,0,0,0,0,191,191,191,184,177,177,170,169,29973,29973,29982,29983,29983,29984,29984,29985]} 1. e4 {[%emt 0:00:03]} c5 {[%emt 0:00:01]} 2. Nf3 {[%emt 0:00:06]} d6 {[%emt 0:00:02]} 3. Bb5+ {[%emt 0:00:05]} Bd7 {[%emt 0:00:18]} 4. Bxd7+ {[%emt 0:00:05]} Qxd7 {[%emt 0:00:13]} 5. O-O {[%emt 0:00:14]} g6 {[%emt 0:00:18]} 6. c3 {[%emt 0:00:13] B52: Sicilian: Moscow Variation with 3...Bd7.} Nf6 {[%emt 0:00:24]} 7. Re1 {[%emt 0:00:06]} Bg7 {[%emt 0:01:55]} 8. d4 {[%emt 0:01:04] The position is equal.} e6 {[%emt 0:02:16]} (8... O-O $11) 9. Nbd2 {[%emt 0:03:14] [#]} (9. dxc5 $14 dxc5 10. Qe2) 9... O-O $146 {[%emt 0:01:41]} (9... cxd4 $11 {should be considered.} 10. cxd4 (10. Nxd4 O-O $11) 10... O-O) ({Predecessor:} 9... cxd4 10. cxd4 O-O 11. b3 Nc6 12. Bb2 Nb4 13. Nc4 b5 14. Na3 a5 15. Qe2 Rfc8 {0-1 (63) Kaplan,E (1882)-Aslan,C (1760) Kocaeli 2014}) 10. Nc4 {[%emt 0:02:16]} b5 {[%emt 0:05:57] [#]} 11. Nxd6 {[%emt 0:01:02]} Qxd6 {[%emt 0:00:30]} 12. e5 {[%emt 0:00:05]} Qd5 {[%emt 0:00:39] And now ...Nfd7 would win.} 13. exf6 {[%emt 0:00:08]} Bxf6 {[%emt 0:00:06]} 14. dxc5 {[%emt 0:01:33]} Qxc5 {[%emt 0:00:30]} 15. Be3 {[%emt 0:02:14]} Qe7 {[%emt 0:09:57]} 16. Nd4 {[%emt 0:04:01]} Qb7 {[%emt 0:13:27]} 17. Qe2 {[%emt 0:02:50]} a6 {[%emt 0:08:56]} 18. Rad1 {[%emt 0:01:56]} Nd7 {[%emt 0:03:43]} 19. Bh6 {[%emt 0:05:24]} Rfe8 {[%emt 0:01:36]} 20. Qg4 {[%emt 0:04:03]} Bh8 {[%emt 0:12:12]} (20... Nc5 {with more complications.} 21. Nc2 Rad8 22. Qf4 Bh8) 21. Nf3 {[%emt 0:12:08]} Nf6 {[%emt 0:13:54]} 22. Qh4 {[%emt 0:03:56]} Rac8 {[%emt 0:01:16]} (22... Nd5 {looks sharper.} 23. Ne5 Qe7 24. Qe4 Qc7) 23. Rd3 {[%emt 0:04:42]} Rc4 {[%emt 0:01:31]} 24. Rd4 {[%emt 0:04:07]} Rxd4 {[%emt 0:01:19]} 25. Nxd4 {[%emt 0:02:34][%cal Bf3d4,Bd4b3,Bb3c5][%mdl 32]} Qd5 {[%emt 0:01:46]} 26. Bg5 {[%emt 0:06:01]} Nd7 {[%emt 0:02:22]} 27. Nb3 {[%emt 0:03:35]} Ne5 {[%emt 0:03:02]} (27... a5 $17) 28. Qe4 $15 {[%emt 0:04:41]} Qxe4 {[%emt 0:01:39]} 29. Rxe4 {[%emt 0:00:02]} Nc4 {[%emt 0:02:57]} 30. Re2 {[%emt 0:00:18]} f6 {[%emt 0:00:27]} (30... Rc8 $15 {was preferrable.}) 31. Be3 {[%emt 0:00:57]} Kf7 {[%emt 0:01:31]} 32. Nc5 {[%emt 0:00:59]} Rd8 {[%emt 0:00:14] ( -> ...Rd1+)} 33. g3 {[%emt 0:00:37]} a5 {[%emt 0:01:52]} 34. Nb7 {[%emt 0:03:05]} (34. Bh6 $11) 34... Rd7 {[%emt 0:00:36]} 35. Nc5 {[%emt 0:00:14]} Rd1+ {[%emt 0:02:43]} 36. Kg2 {[%emt 0:00:10]} e5 {[%emt 0:00:37]} 37. b3 {[%emt 0:01:39]} Nd6 {[%emt 0:01:16]} (37... Nxe3+ $15 38. fxe3 Bg7) 38. Rd2 {[%emt 0:00:34]} Rxd2 {[%emt 0:00:04]} 39. Bxd2 $11 {[%emt 0:00:04][%mdl 4096] Endgame KBN-KBN} f5 {[%emt 0:00:19]} 40. a4 {[%emt 0:00:15]} bxa4 {[%emt 0:04:14]} 41. Nxa4 {[%emt 0:00:10]} Nb7 {[%emt 0:00:17]} 42. Kf1 {[%emt 0:01:23]} Ke6 {[%emt 0:00:32]} 43. Ke2 {[%emt 0:00:18]} e4 {[%emt 0:00:34]} 44. c4 {[%emt 0:01:39]} Kd6 {[%emt 0:00:45]} 45. f3 {[%emt 0:02:03]} exf3+ {[%emt 0:00:56]} 46. Kxf3 {[%emt 0:00:03]} Bd4 {[%emt 0:01:02]} 47. Bh6 {[%emt 0:03:00]} Bc5 $2 {[%emt 0:00:45] [#]} (47... Nd8 $11) 48. Bf8+ $1 $18 {[%emt 0:01:34]} Kc6 {[%emt 0:00:06]} 49. Bxc5 {[%emt 0:00:04]} Nxc5 {[%emt 0:00:03]} 50. Nxc5 {[%emt 0:00:05]} Kxc5 {[%emt 0:00:03] KP-KP} 51. Kf4 {[%emt 0:00:05] Against g5+} a4 $2 {[%emt 0:00:26]} (51... Kb4 $18) 52. bxa4 {[%emt 0:00:10] White mates.} Kxc4 {[%emt 0:00:03]} 53. Kg5 {[%emt 0:00:07]} Kb4 {[%emt 0:00:04]} 54. h4 {[%emt 0:00:07]} Kxa4 {[%emt 0:00:09]} 55. Kh6 {[%emt 0:00:04] Weighted Error Value: White=0.11 (very precise) /Black=0.26 (precise)} 1-0